fUST/lending_fUST_20250109
["ID","MTS","AMOUNT","RATE_DAILY","PERIOD"]
[348238169,1736411446793,-1183.36,0.0002,3]
[348238171,1736411446803,-1134.05,0.0002,3]
[348238172,1736411446812,-538.56,0.0002,3]
[348238174,1736411446822,-3708.45,0.0002,3]
[348238175,1736411446831,-500.0,0.0002,3]
[348238176,1736411446841,-610.14643953,0.0002,3]
[348238177,1736411446850,-500.0,0.0002,3]
[348238178,1736411446860,-500.0,0.0002,3]
[348238179,1736411446872,-500.0,0.0002,3]
[348238180,1736411446881,-1621.91,0.0002,2]
[348238181,1736411446891,-1032.93,0.00020273,3]
[348238182,1736411446900,-970.84,0.00020273,3]
[348238183,1736411446910,-1183.36,0.00020273,3]
[348238184,1736411446919,-1134.05,0.00020273,3]
[348238185,1736411446929,-538.56,0.00020273,3]
[348238186,1736411446938,-3708.45,0.00020273,3]
[348238187,1736411446948,-500.0,0.00020273,3]
[348238188,1736411446957,-500.0,0.00020273,3]
[348238189,1736411446967,-500.0,0.00020273,3]
[348238190,1736411446976,-500.0,0.00020273,3]
[348238191,1736411446986,-1621.91,0.00020273,2]
[348238192,1736411446995,-154.11890068,0.00020278,2]
[348238193,1736411447005,-218.403767,0.00020447,2]
[348238194,1736411447016,-394.0,0.00020491,2]
[348238195,1736411447026,-162.94204819,0.00020515,2]
[348238196,1736411447035,-1032.93,0.00020547,3]
[348238197,1736411447045,-970.84,0.00020547,3]
[348238198,1736411447054,-1183.36,0.00020547,3]
[348238199,1736411447063,-1134.05,0.00020547,3]
[348238200,1736411447072,-538.56,0.00020547,3]
[348238201,1736411447082,-3708.45,0.00020547,3]
[348238202,1736411447092,-500.0,0.00020547,3]
[348238203,1736411447101,-500.0,0.00020547,3]
[348238204,1736411447111,-500.0,0.00020547,3]
[348238205,1736411447125,-500.0,0.00020547,3]
[348238206,1736411447135,-1621.91,0.00020547,2]
[348238207,1736411447144,-500.0,0.00020584,2]
[348238208,1736411447153,-1032.93,0.00020821,3]
[348238209,1736411447163,-970.84,0.00020821,3]
[348238210,1736411447172,-1183.36,0.00020821,3]
[348238211,1736411447182,-1134.05,0.00020821,3]
[348238212,1736411447191,-538.56,0.00020821,3]
[348238213,1736411447201,-3708.45,0.00020821,3]
[348238214,1736411447211,-500.0,0.00020821,3]
[348238215,1736411447220,-500.0,0.00020821,3]
[348238216,1736411447230,-500.0,0.00020821,3]
[348238217,1736411447239,-500.0,0.00020821,3]
[348238218,1736411447249,-1621.91,0.00020821,2]
[348238219,1736411447259,-420.0,0.00020899,2]
[348238220,1736411447269,-1032.93,0.00021095,3]
[348238221,1736411447279,-970.84,0.00021095,3]
[348238222,1736411447288,-1183.36,0.00021095,3]
[348238223,1736411447298,-1134.05,0.00021095,3]
[348238224,1736411447309,-538.56,0.00021095,3]
[348238225,1736411447320,-3708.45,0.00021095,3]
[348238226,1736411447330,-500.0,0.00021095,3]
[348238227,1736411447340,-329.99453444,0.00021095,3]
[348238228,1736411447349,-500.0,0.00021095,3]
[348238229,1736411447359,-500.0,0.00021095,3]
[348238230,1736411447369,-1621.91,0.00021095,2]
[348238231,1736411447379,-164.16924381,0.00021368,2]
[348238232,1736411447388,-201.34282603,0.00021368,2]
[348238233,1736411447398,-500.0,0.00021368,2]
[348238234,1736411447410,-1032.93,0.00021369,3]
[348238235,1736411447420,-970.84,0.00021369,3]
[348238236,1736411447517,-1183.36,0.00021369,3]
[348238237,1736411447527,-1134.05,0.00021369,3]
[348238238,1736411447536,-538.56,0.00021369,3]
[348238239,1736411447545,-3708.45,0.00021369,3]
[348238240,1736411447555,-500.0,0.00021369,3]
[348238241,1736411447565,-500.0,0.00021369,3]
[348238242,1736411447574,-500.0,0.00021369,3]
[348238243,1736411447583,-1621.91,0.00021369,2]
[348238244,1736411447592,-154.11890068,0.00021458,2]
[348238245,1736411447602,-1032.93,0.00021643,3]
[348238246,1736411447612,-970.84,0.00021643,3]
[348238247,1736411447624,-1183.36,0.00021643,3]
[348238248,1736411447633,-1134.05,0.00021643,3]
[348238249,1736411447643,-538.56,0.00021643,3]
[348238250,1736411447652,-3708.45,0.00021643,3]
[348238251,1736411447661,-500.0,0.00021643,3]
[348238252,1736411447670,-500.0,0.00021643,3]
[348238253,1736411447680,-500.0,0.00021643,3]
[348238254,1736411447689,-1621.91,0.00021643,2]
[348238255,1736411447699,-162.94204819,0.00021817,2]
[348238256,1736411447708,-466.89265056,0.00021818,2]
[348238257,1736411447717,-470.61094595,0.00021821,2]
[348238258,1736411447727,-151.0,0.00021917,2]
[348238259,1736411447736,-1032.93,0.00021917,3]
[348238260,1736411447746,-970.84,0.00021917,3]
[348238261,1736411447755,-1183.36,0.00021917,3]
[348238262,1736411447765,-1134.05,0.00021917,3]
[348238263,1736411447774,-538.56,0.00021917,3]
[348238264,1736411447784,-3708.45,0.00021917,3]
[348238265,1736411447793,-500.0,0.00021917,3]
[348238266,1736411447803,-500.0,0.00021917,3]
[348238267,1736411447813,-494.32663092,0.00021917,3]
[348238268,1736411447822,-1621.91,0.00021917,2]
[348238269,1736411447832,-610.529,0.0002204,2]
[348238270,1736411447841,-1032.93,0.00022191,3]
[348238271,1736411447851,-970.84,0.00022191,3]
[348238272,1736411447861,-1183.36,0.00022191,3]
[348238273,1736411447876,-538.56,0.00022191,3]
[348238274,1736411447885,-3708.45,0.00022191,3]
[348238275,1736411447895,-500.0,0.00022191,3]
[348238276,1736411447904,-500.0,0.00022191,3]
[348238277,1736411447913,-1621.91,0.00022191,2]
[348238278,1736411447922,-499.999999,0.0002238,2]
[348238279,1736411447932,-1032.93,0.00022465,3]
[348238280,1736411447941,-970.84,0.00022465,3]
[348238281,1736411447951,-1183.36,0.00022465,3]
[348238282,1736411447960,-538.56,0.00022465,3]
[348238283,1736411447969,-3708.45,0.00022465,3]
[348238284,1736411447979,-500.0,0.00022465,3]
[348238285,1736411447988,-539.64570718,0.00022465,3]
[348238286,1736411447997,-1621.91,0.00022465,2]
[348238287,1736411448007,-1000.0,0.00022485,2]
[348238288,1736411448016,-1000.0,0.00022595,2]
[348238289,1736411448025,-154.11890068,0.00022639,2]
[348238290,1736411448035,-1032.93,0.00022739,3]
[348238291,1736411448044,-970.84,0.00022739,3]
[348238292,1736411448054,-1183.36,0.00022739,3]
[348238293,1736411448064,-538.56,0.00022739,3]
[348238294,1736411448074,-3708.45,0.00022739,3]
[348238295,1736411448084,-500.0,0.00022739,3]
[348238296,1736411448094,-1621.91,0.00022739,2]
[348238297,1736411448104,-481.48,0.000228,2]
[348238298,1736411448115,-9578.84972826,0.00022878,2]
[348238299,1736411448128,-152.6372958,0.00022967,2]
[348238300,1736411448138,-175.0,0.00022989,2]
[348238301,1736411448147,-175.0,0.00022989,2]
[348238302,1736411448156,-152.0,0.00022989,2]
[348238303,1736411448166,-153.0,0.00022989,2]
[348238304,1736411448175,-153.0,0.00022989,2]
[348238305,1736411448185,-153.0,0.00022989,2]
[348238306,1736411448194,-153.0,0.00022989,2]
[348238307,1736411448204,-153.0,0.00022989,2]
[348238308,1736411448214,-153.0,0.00022989,2]
[348238309,1736411448223,-153.0,0.00022989,2]
[348238310,1736411448232,-153.0,0.00022989,2]
[348238311,1736411448241,-153.0,0.00022989,2]
[348238312,1736411448251,-153.0,0.00022989,2]
[348238313,1736411448260,-153.0,0.00022989,2]
[348238314,1736411448269,-153.0,0.00022989,2]
[348238315,1736411448279,-153.0,0.00022989,2]
[348238316,1736411448288,-153.0,0.00022989,2]
[348238317,1736411448297,-153.0,0.00022989,2]
[348238318,1736411448307,-153.0,0.00022989,2]
[348238319,1736411448319,-153.0,0.00022989,2]
[348238320,1736411448328,-153.0,0.00022989,2]
[348238321,1736411448338,-153.0,0.00022989,2]
[348238322,1736411448347,-153.0,0.00022989,2]
[348238323,1736411448356,-242.0,0.00022989,2]
[348238324,1736411448365,-190.0,0.00023,14]
[348238325,1736411448376,-190.0,0.00023,7]
[348238326,1736411448386,-190.0,0.00023,14]
[348238327,1736411448395,-187.08122308,0.00023,7]
[348238328,1736411448405,-1032.93,0.00023013,3]
[348238329,1736411448417,-970.84,0.00023013,3]
[348238330,1736411448427,-538.56,0.00023013,3]
[348238331,1736411448437,-3708.45,0.00023013,3]
[348238332,1736411448448,-500.0,0.00023013,3]
[348238333,1736411448458,-1621.91,0.00023013,2]
[348238334,1736411448468,-200.8,0.00023066,2]
[348238335,1736411448478,-153.0,0.00023066,2]
[348238336,1736411448489,-153.0,0.00023066,2]
[348238337,1736411448500,-153.0,0.00023066,2]
[348238338,1736411448510,-153.0,0.00023066,2]
[348238339,1736411448519,-153.0,0.00023066,2]
[348238340,1736411448529,-153.0,0.00023066,2]
[348238341,1736411448539,-153.0,0.00023066,2]
[348238342,1736411448548,-153.0,0.00023066,2]
[348238343,1736411448558,-153.0,0.00023066,2]
[348238344,1736411448568,-153.0,0.00023066,2]
[348238345,1736411448577,-153.0,0.00023066,2]
[348238346,1736411448587,-153.0,0.00023066,2]
[348238347,1736411448597,-153.0,0.00023066,2]
[348238348,1736411448606,-153.0,0.00023066,2]
[348238349,1736411448618,-153.0,0.00023066,2]
[348238350,1736411448628,-153.0,0.00023066,2]
[348238351,1736411448638,-153.0,0.00023066,2]
[348238352,1736411448647,-153.0,0.00023066,2]
[348238353,1736411448656,-153.0,0.00023066,2]
[348238354,1736411448666,-238.99,0.00023066,2]
[348238355,1736411448675,-162.94204819,0.00023119,2]
[348238356,1736411448685,-2000.0,0.000232,2]
[348238357,1736411448694,-175.209639,0.00023204,7]
[348238358,1736411448704,-151.0,0.00023204,7]
[348238359,1736411448713,-151.0,0.00023204,7]
[348238360,1736411448722,-151.0,0.00023204,7]
[348238361,1736411448732,-151.0,0.00023204,7]
[348238362,1736411448742,-151.0,0.00023204,7]
[348238363,1736411448751,-151.0,0.00023204,7]
[348238364,1736411448760,-151.0,0.00023213,7]
[348238365,1736411448770,-36316.39387023,0.00023219,5]
[348238366,1736411448779,-4918.35793835,0.00023219,5]
[348238367,1736411448789,-189523.08959157,0.00023219,10]
[348238368,1736411448828,-500.0,0.00019178,2]
[348238369,1736411448837,-500.0,0.00019178,2]
[348238370,1736411448846,-178.0,0.00020396,2]
[348238371,1736411448856,-402.67808904,0.00023199,2]
[348238372,1736411448869,-346.72191097,0.00023219,10]
[348238374,1736411488286,9.83482073,0.00013973,2]
[348238375,1736411488310,154.58336601,0.00013973,2]
[348238376,1736411488335,42.34681626,0.00013973,2]
[348238391,1736412352131,-640.84502872,0.00017336,2]
[348238392,1736412426100,-73.47144906,0.00017336,2]
[348238393,1736412426124,-206.51712589,0.00017436,2]
[348238394,1736412433112,-93.48287411,0.00017436,2]
[348238395,1736412433136,-971.15872487,0.00017436,2]
[348238396,1736412434122,-198.84127513,0.00017436,2]
[348238397,1736412434146,-1366.91801352,0.00017437,2]
[348238398,1736412436262,-5010.48804742,0.00017437,2]
[348238399,1736412438379,-7732.33745113,0.00017437,2]
[348238400,1736412444082,-291.55122807,0.00017437,2]
[348238401,1736412453128,-859.34188858,0.00017437,2]
[348238430,1736412547123,-9639.36337128,0.00017437,2]
[348238431,1736412547146,-300.0,0.0001745,2]
[348238432,1736412547166,-654.5917733,0.00017451,2]
[348238433,1736412547189,-224.4097962,0.00017472,2]
[348238434,1736412547210,-1545.692444,0.00017477,2]
[348238435,1736412547230,-4820.823598,0.000175,2]
[348238436,1736412547251,-264.8022436,0.00017698,2]
[348238438,1736412557108,-138.53093137,0.00017698,2]
[348238440,1736412567566,164.10520812,0.00013973,2]
[348238441,1736412567592,72.32154488,0.00013973,2]
[348238443,1736412619070,105.38224218,0.00017578,2]
[348238444,1736412619092,162.27180844,0.00017578,2]
[348238493,1736412632072,-387.00001,0.00017578,2]
[348238497,1736412632129,-24245.34593938,0.00017578,2]
[348238498,1736412632139,-161.995693,0.00018273,2]
[348238499,1736412632148,-161.995693,0.00018278,2]
[348238500,1736412632158,-161.995693,0.00018283,2]
[348238501,1736412632167,-161.995693,0.00018288,2]
[348238502,1736412632177,-161.995693,0.00018293,2]
[348238503,1736412632187,-161.995693,0.00018298,2]
[348238504,1736412632197,-161.995693,0.00018303,2]
[348238505,1736412632206,-161.995693,0.00018308,2]
[348238506,1736412632216,-161.995693,0.00018313,2]
[348238507,1736412632226,-161.995693,0.00018318,2]
[348238508,1736412632235,-161.995693,0.00018323,2]
[348238509,1736412632244,-161.995693,0.00018328,2]
[348238510,1736412632254,-161.995693,0.00018333,2]
[348238511,1736412632264,-161.995693,0.00018338,2]
[348238512,1736412632273,-161.995693,0.00018343,2]
[348238513,1736412632283,-161.995693,0.00018349,2]
[348238514,1736412632293,-161.995693,0.00018354,2]
[348238515,1736412632303,-161.995693,0.00018359,2]
[348238516,1736412632312,-161.995693,0.00018364,2]
[348238517,1736412632322,-154.13,0.000186,2]
[348238518,1736412632333,-500.0,0.00018629,2]
[348238519,1736412632344,-1026.58328274,0.000189,2]
[348238520,1736412632354,-151.99897135,0.00019,2]
[348238521,1736412632366,-340.403,0.00019002,2]
[348238522,1736412632377,-1040.57782223,0.00019077,2]
[348238523,1736412632387,-299.08523795,0.00019078,2]
[348238524,1736412632397,-173.74605056,0.00019078,2]
[348238525,1736412632406,-217.59967633,0.00019173,2]
[348238526,1736412632416,-504.09201086,0.00019173,2]
[348238527,1736412632426,-500.0,0.00019173,2]
[348238528,1736412632436,-501.50912896,0.00019173,2]
[348238529,1736412632447,-335.85515072,0.00019177,2]
[348238530,1736412632457,-500.0,0.00019177,2]
[348238531,1736412632466,-509.1386211,0.00019177,2]
[348238532,1736412632476,-500.0,0.00019177,2]
[348238533,1736412632486,-500.0,0.00019177,2]
[348238534,1736412632495,-395.73534068,0.00019177,2]
[348238535,1736412632504,-164.38028571,0.00019177,2]
[348238536,1736412632514,-500.0,0.00019177,2]
[348238537,1736412632527,-354.67797019,0.00019177,2]
[348238538,1736412632537,-568.5290599,0.00019178,2]
[348238539,1736412632546,-500.0,0.00019178,2]
[348238540,1736412632555,-500.0,0.00019178,2]
[348238541,1736412632565,-514.8668891,0.00019178,2]
[348238542,1736412632574,-505.54932858,0.00019178,2]
[348238543,1736412632583,-500.0,0.00019178,2]
[348238544,1736412632592,-500.0,0.00019178,2]
[348238545,1736412632601,-500.0,0.00019178,2]
[348238546,1736412632612,-500.48139971,0.00019178,2]
[348238547,1736412632621,-500.0,0.00019178,2]
[348238548,1736412632630,-500.0,0.00019178,2]
[348238549,1736412632639,-500.0,0.00019178,2]
[348238550,1736412632649,-500.0,0.00019178,2]
[348238551,1736412632658,-500.78599156,0.00019178,2]
[348238552,1736412632667,-502.38840931,0.00019178,2]
[348238553,1736412632676,-503.84498176,0.00019178,2]
[348238554,1736412632685,-500.65212205,0.00019178,2]
[348238555,1736412632696,-500.51000536,0.00019178,2]
[348238556,1736412632706,-500.0,0.00019178,2]
[348238557,1736412632715,-500.0,0.00019178,2]
[348238558,1736412632724,-428.74261144,0.00019178,2]
[348238559,1736412632734,-500.26054105,0.00019178,2]
[348238560,1736412632743,-500.0,0.00019178,2]
[348238561,1736412632753,-500.74583628,0.00019178,2]
[348238562,1736412632762,-516.08,0.00019178,2]
[348238563,1736412632771,-225.48182622,0.00019178,2]
[348238564,1736412632781,-500.0,0.00019178,2]
[348238565,1736412632790,-500.0,0.00019178,2]
[348238566,1736412632800,-500.0,0.00019178,2]
[348238567,1736412632809,-500.0,0.00019178,2]
[348238568,1736412632819,-500.0,0.00019178,2]
[348238569,1736412632829,-501.10048546,0.00019178,2]
[348238570,1736412632838,-500.0,0.00019178,2]
[348238571,1736412632851,-598.45,0.00019178,2]
[348238572,1736412632861,-500.0,0.00019178,2]
[348238573,1736412632871,-502.37061154,0.00019178,2]
[348238574,1736412632880,-500.0,0.00019178,2]
[348238575,1736412632890,-500.0,0.00019178,2]
[348238576,1736412632900,-500.0,0.00019178,2]
[348238577,1736412632909,-500.0,0.00019178,2]
[348238578,1736412632919,-512.62452636,0.00019178,2]
[348238579,1736412632928,-500.0,0.00019178,2]
[348238580,1736412632939,-500.0,0.00019178,2]
[348238581,1736412632949,-500.0,0.00019178,2]
[348238582,1736412632959,-500.0,0.00019178,2]
[348238583,1736412632968,-500.0,0.00019178,2]
[348238584,1736412632978,-500.0,0.00019178,2]
[348238585,1736412632987,-501.68967736,0.00019178,2]
[348238586,1736412632998,-500.0,0.00019178,2]
[348238587,1736412633007,-500.0,0.00019178,2]
[348238588,1736412633017,-500.0,0.00019178,2]
[348238589,1736412633027,-500.0,0.00019178,2]
[348238590,1736412633037,-501.62925538,0.00019178,2]
[348238591,1736412633048,-500.0,0.00019178,2]
[348238592,1736412633058,-276.79950226,0.00019178,2]
[348238593,1736412633068,-500.0,0.00019178,2]
[348238594,1736412633078,-561.5037145,0.00019178,2]
[348238595,1736412633088,-500.0,0.00019178,2]
[348238596,1736412633098,-500.0,0.00019178,2]
[348238597,1736412633108,-500.0,0.00019178,2]
[348238598,1736412633117,-500.0,0.00019178,2]
[348238599,1736412633127,-500.0,0.00019178,2]
[348238600,1736412633137,-500.0,0.00019178,2]
[348238601,1736412633147,-500.0,0.00019178,2]
[348238602,1736412633157,-500.0,0.00019178,2]
[348238603,1736412633167,-500.0,0.00019178,2]
[348238604,1736412633177,-500.0,0.00019178,2]
[348238605,1736412633186,-500.0,0.00019178,2]
[348238606,1736412633198,-500.0,0.00019178,2]
[348238607,1736412633207,-500.0,0.00019178,2]
[348238608,1736412633218,-500.0,0.00019178,2]
[348238609,1736412633229,-545.13979332,0.00019178,2]
[348238610,1736412633239,-500.0,0.00019178,2]
[348238611,1736412633249,-500.0,0.00019178,2]
[348238612,1736412633259,-500.0,0.00019178,2]
[348238613,1736412633268,-500.0,0.00019178,2]
[348238614,1736412633278,-500.0,0.00019178,2]
[348238615,1736412633288,-500.0,0.00019178,2]
[348238616,1736412633298,-500.0,0.00019178,2]
[348238617,1736412633308,-503.6688454,0.00019178,2]
[348238618,1736412633318,-500.0,0.00019178,2]
[348238619,1736412633327,-500.0,0.00019178,2]
[348238620,1736412633337,-500.0,0.00019178,2]
[348238621,1736412633347,-500.0,0.00019178,2]
[348238622,1736412633356,-546.98269604,0.00019178,2]
[348238623,1736412633366,-500.0,0.00019178,2]
[348238624,1736412633375,-500.0,0.00019178,2]
[348238625,1736412633385,-500.0,0.00019178,2]
[348238626,1736412633395,-500.0,0.00019178,2]
[348238627,1736412633405,-500.0,0.00019178,2]
[348238628,1736412633415,-500.0,0.00019178,2]
[348238629,1736412633425,-500.0,0.00019178,2]
[348238630,1736412633435,-500.0,0.00019178,2]
[348238631,1736412633446,-500.0,0.00019178,2]
[348238632,1736412633456,-500.0,0.00019178,2]
[348238633,1736412633465,-322.45356289,0.00019178,2]
[348238634,1736412633475,-500.0,0.00019178,2]
[348238635,1736412633485,-500.0,0.00019178,2]
[348238636,1736412633495,-500.0,0.00019178,2]
[348238637,1736412633507,-500.0,0.00019178,2]
[348238638,1736412633517,-500.0,0.00019178,2]
[348238639,1736412633531,-500.0,0.00019178,2]
[348238640,1736412633540,-244.75826578,0.00019178,2]
[348238641,1736412633550,-500.0,0.00019178,2]
[348238642,1736412633560,-500.0,0.00019178,2]
[348238643,1736412633571,-515.06365391,0.00019178,2]
[348238644,1736412633580,-500.83129154,0.00019178,2]
[348238645,1736412633591,-500.0,0.00019178,2]
[348238646,1736412633600,-503.49483762,0.00019178,2]
[348238647,1736412633610,-500.0,0.00019178,2]
[348238648,1736412633620,-500.0,0.00019178,2]
[348238649,1736412633629,-500.0,0.00019178,2]
[348238650,1736412633639,-188.0,0.00019178,2]
[348238651,1736412633648,-500.0,0.00019178,2]
[348238652,1736412633658,-500.0,0.00019178,2]
[348238653,1736412633668,-500.0,0.00019178,2]
[348238654,1736412633677,-500.0,0.00019178,2]
[348238655,1736412633686,-500.0,0.00019178,2]
[348238656,1736412633696,-500.0,0.00019178,2]
[348238657,1736412633705,-500.0,0.00019178,2]
[348238658,1736412633715,-500.0,0.00019178,2]
[348238659,1736412633724,-500.0,0.00019178,2]
[348238660,1736412633733,-500.0,0.00019178,2]
[348238661,1736412633742,-500.0,0.00019178,2]
[348238662,1736412633751,-500.0,0.00019178,2]
[348238663,1736412633761,-500.0,0.00019178,2]
[348238664,1736412633770,-500.0,0.00019178,2]
[348238665,1736412633781,-500.0,0.00019178,2]
[348238666,1736412633791,-500.0,0.00019178,2]
[348238667,1736412633800,-500.0,0.00019178,2]
[348238668,1736412633809,-500.0,0.00019178,2]
[348238669,1736412633819,-500.0,0.00019178,2]
[348238670,1736412633828,-565.97097761,0.00019178,2]
[348238671,1736412633838,-353.79173902,0.00019178,2]
[348238672,1736412633847,-500.0,0.00019178,2]
[348238673,1736412633856,-500.0,0.00019178,2]
[348238674,1736412633865,-500.0,0.00019178,2]
[348238675,1736412633874,-501.27086388,0.00019178,2]
[348238676,1736412633884,-500.0,0.00019178,2]
[348238677,1736412633894,-500.0,0.00019178,2]
[348238678,1736412633904,-500.0,0.00019178,2]
[348238679,1736412633914,-500.0,0.00019178,2]
[348238680,1736412633924,-500.98506428,0.00019178,2]
[348238681,1736412633934,-500.0,0.00019178,2]
[348238682,1736412633946,-500.0,0.00019178,2]
[348238683,1736412633956,-515.98162082,0.00019178,2]
[348238684,1736412633966,-500.0,0.00019178,2]
[348238685,1736412633976,-505.50937111,0.00019178,2]
[348238686,1736412633985,-500.0,0.00019178,2]
[348238687,1736412633996,-500.0,0.00019178,2]
[348238688,1736412634006,-500.0,0.00019178,2]
[348238689,1736412634016,-500.0,0.00019178,2]
[348238690,1736412634026,-500.0,0.00019178,2]
[348238691,1736412634036,-1000.0,0.00019178,2]
[348238692,1736412634045,-500.0,0.00019178,2]
[348238693,1736412634055,-500.0,0.00019178,2]
[348238694,1736412634065,-457.45006751,0.00019178,2]
[348238695,1736412634075,-321.84887538,0.00019178,2]
[348238696,1736412634085,-500.0,0.00019178,2]
[348238697,1736412634094,-452.25468756,0.00019178,2]
[348238698,1736412634104,-500.0,0.00019178,2]
[348238699,1736412634114,-500.0,0.00019178,2]
[348238700,1736412634124,-500.0,0.00019178,2]
[348238701,1736412634134,-500.0,0.00019178,2]
[348238702,1736412634144,-500.0,0.00019178,2]
[348238703,1736412634154,-500.0,0.00019178,2]
[348238704,1736412634164,-339.02534287,0.00019178,2]
[348238705,1736412634174,-500.0,0.00019178,2]
[348238706,1736412634184,-500.0,0.00019178,2]
[348238707,1736412634195,-501.40886777,0.00019178,2]
[348238708,1736412634205,-500.0,0.00019178,2]
[348238709,1736412634215,-569.3494941,0.00019178,2]
[348238710,1736412634225,-218.69938817,0.00019178,2]
[348238711,1736412634235,-500.0,0.00019178,2]
[348238712,1736412634247,-510.91554734,0.00019178,2]
[348238713,1736412634256,-500.0,0.00019178,2]
[348238714,1736412634266,-500.0,0.00019178,2]
[348238715,1736412634276,-500.0,0.00019178,2]
[348238716,1736412634287,-500.0,0.00019178,2]
[348238717,1736412634296,-504.4058613,0.00019178,2]
[348238718,1736412634397,-500.0,0.00019178,2]
[348238719,1736412634407,-500.0,0.00019178,2]
[348238720,1736412634416,-500.0,0.00019178,2]
[348238721,1736412634425,-503.01129463,0.00019178,2]
[348238722,1736412634435,-500.0,0.00019178,2]
[348238723,1736412634447,-500.0,0.00019178,2]
[348238724,1736412634456,-500.0,0.00019178,2]
[348238725,1736412634466,-505.01674283,0.00019178,2]
[348238726,1736412634476,-290.59440925,0.00019178,2]
[348238727,1736412634486,-500.0,0.00019178,2]
[348238728,1736412634496,-500.0,0.00019178,2]
[348238729,1736412634505,-500.0,0.00019178,2]
[348238730,1736412634515,-500.0,0.00019178,2]
[348238731,1736412634529,-500.0,0.00019178,2]
[348238732,1736412634539,-636.03693172,0.00019178,2]
[348238733,1736412634548,-500.0,0.00019178,2]
[348238734,1736412634559,-505.31424948,0.00019178,2]
[348238735,1736412634568,-500.0,0.00019178,2]
[348238736,1736412634578,-500.0,0.00019178,2]
[348238737,1736412634589,-500.0,0.00019178,2]
[348238738,1736412634598,-501.83752936,0.00019178,2]
[348238739,1736412634607,-500.0,0.00019178,2]
[348238740,1736412634616,-502.77013542,0.00019178,2]
[348238741,1736412634626,-500.0,0.00019178,2]
[348238742,1736412634635,-500.0,0.00019178,2]
[348238743,1736412634645,-500.0,0.00019178,2]
[348238744,1736412634655,-531.45819254,0.00019178,2]
[348238745,1736412634664,-500.0,0.00019178,2]
[348238746,1736412634674,-504.18648522,0.00019178,2]
[348238747,1736412634684,-500.0,0.00019178,2]
[348238748,1736412634695,-500.0,0.00019178,2]
[348238749,1736412634705,-500.0,0.00019178,2]
[348238750,1736412634715,-500.0,0.00019178,2]
[348238751,1736412634725,-500.0,0.00019178,2]
[348238752,1736412634734,-519.74217958,0.00019178,2]
[348238753,1736412634744,-2706.19,0.00019178,2]
[348238754,1736412634753,-500.0,0.00019178,2]
[348238755,1736412634763,-500.0,0.00019178,2]
[348238756,1736412634773,-500.0,0.00019178,2]
[348238757,1736412634782,-500.0,0.00019178,2]
[348238758,1736412634792,-500.0,0.00019178,2]
[348238759,1736412634802,-831.9,0.00019178,2]
[348238760,1736412634812,-500.0,0.00019178,2]
[348238761,1736412634821,-500.0,0.00019178,2]
[348238762,1736412634831,-500.0,0.00019178,2]
[348238763,1736412634841,-502.55810365,0.00019178,2]
[348238764,1736412634851,-500.0,0.00019178,2]
[348238765,1736412634861,-597.77062871,0.00019178,2]
[348238766,1736412634870,-500.0,0.00019178,2]
[348238767,1736412634880,-521.9,0.00019178,2]